bitfinex/quotes_BTCUSD_20240823
["timestamp","ask_amount","ask_price","bid_price","bid_amount"]
[1724437545411,0.009,63421.0,63412.0,0.000825]
[1724437545412,0.109,63421.0,63412.0,0.000825]
[1724437545612,0.109,63421.0,63415.0,0.31538]
[1724437545613,0.009,63421.0,63415.0,0.31538]
[1724437545810,0.009,63421.0,63419.0,0.15768]
[1724437546012,0.009,63421.0,63412.0,0.000825]
[1724437546243,0.3799,63419.0,63412.0,0.000825]
[1724437546441,0.3799,63424.0,63413.0,0.31539]
[1724437546638,0.3799,63424.0,63413.0,0.315391]
[1724437546639,0.003,63416.0,63413.0,0.315391]
[1724437546979,0.003,63416.0,63412.0,0.000825]
[1724437547186,0.3799,63413.0,63412.0,0.000825]
[1724437547396,0.3799,63413.0,63412.0,0.001825]
[1724437547603,0.4344587,63413.0,63412.0,0.000825]
[1724437547801,0.5921547,63413.0,63412.0,0.000825]
[1724437548035,0.3799,63413.0,63412.0,0.000825]
[1724437548211,0.180696,63413.0,63412.0,0.000825]
[1724437548431,0.596088,63413.0,63412.0,0.000825]
[1724437548626,1.11008,63413.0,63412.0,0.000825]
[1724437548971,1.1368212,63413.0,63412.0,0.000825]
[1724437549170,1.29017671,63413.0,63412.0,0.000825]
[1724437549376,1.1368212,63413.0,63412.0,0.000825]
[1724437549570,1.4522132,63413.0,63412.0,0.001825]
[1724437549786,0.8210499,63413.0,63412.0,0.000825]
[1724437550006,1.1384419,63413.0,63412.0,0.000825]
[1724437550207,1.4588339,63413.0,63412.0,0.001825]
[1724437550543,1.61381268,63413.0,63412.0,0.000825]
[1724437550756,1.4618339,63413.0,63412.0,0.000825]
[1724437550959,1.4618339,63413.0,63399.0,0.000824]
[1724437550960,0.98663,63401.0,63399.0,0.000824]
[1724437551104,2.57076394,63401.0,63399.0,0.000824]
[1724437551325,2.67076394,63401.0,63399.0,0.000824]
[1724437551513,1.4874,63401.0,63399.0,0.000824]
[1724437551736,1.51214892,63401.0,63399.0,0.000824]
[1724437551915,1.69287492,63401.0,63399.0,0.000824]
[1724437552115,1.53514892,63401.0,63399.0,0.000824]
[1724437552317,0.51174892,63401.0,63399.0,0.000824]
[1724437552543,0.52574892,63401.0,63399.0,0.000824]
[1724437552739,0.68347492,63401.0,63399.0,0.000824]
[1724437552983,1.02192692,63401.0,63399.0,0.000824]
[1724437553533,1.42952692,63401.0,63399.0,0.000824]
[1724437554166,1.42152692,63401.0,63399.0,0.000824]
[1724437554340,1.41552692,63401.0,63399.0,0.000824]
[1724437554547,1.92347892,63401.0,63399.0,0.000824]
[1724437554761,2.0874577,63401.0,63399.0,0.000824]
[1724437554966,0.47326,63390.0,63385.0,0.00823]
[1724437555171,1.500867,63390.0,63385.0,0.00823]
[1724437555394,1.500867,63390.0,63377.0,0.00824]
[1724437555395,0.788867,63382.0,63377.0,0.00824]
[1724437555598,1.612014,63382.0,63377.0,0.00824]
[1724437555798,1.319467,63382.0,63377.0,0.00824]
[1724437556251,0.5306,63382.0,63377.0,0.00824]
[1724437556650,0.52986679,63382.0,63377.0,0.00824]
[1724437556901,0.50686679,63382.0,63377.0,0.166024]
[1724437557103,0.13875452,63382.0,63377.0,0.00824]
[1724437557506,0.03875452,63382.0,63377.0,0.00824]
[1724437557711,1.00680846,63382.0,63377.0,0.00824]
[1724437557901,1.05180846,63382.0,63377.0,0.00824]
[1724437558084,1.65990246,63382.0,63377.0,0.00824]
[1724437558349,1.02880846,63382.0,63377.0,0.00824]
[1724437558500,0.14675452,63382.0,63377.0,0.00824]
[1724437558703,0.04675452,63382.0,63377.0,0.00824]
[1724437560320,0.10132997,63382.0,63377.0,0.00824]
[1724437560517,0.20132997,63382.0,63377.0,0.00824]
[1724437561007,0.38210297,63382.0,63377.0,0.00824]
[1724437561216,0.22432997,63382.0,63377.0,0.00824]
[1724437561423,0.38410297,63382.0,63377.0,0.00824]
[1724437561642,0.16975452,63382.0,63381.0,0.00813]
[1724437562012,0.06975452,63382.0,63381.0,0.00813]
[1724437562298,0.16975452,63382.0,63381.0,0.00813]
[1724437563301,0.22752752,63382.0,63381.0,0.00813]
[1724437563483,0.16975452,63382.0,63381.0,0.00813]
[1724437563685,0.14675452,63382.0,63381.0,0.00813]
[1724437564722,0.13375452,63382.0,63381.0,0.00813]
[1724437565150,0.14675452,63382.0,63381.0,0.00813]
[1724437565349,0.13775452,63382.0,63381.0,0.00813]
[1724437565911,0.02475452,63382.0,63381.0,0.00813]
[1724437566326,0.02475452,63382.0,63381.0,1.112558]
[1724437566529,1e-08,63382.0,63381.0,2.009109]
[1724437566738,1e-08,63382.0,63381.0,2.17411198]
[1724437566946,0.3786,63422.0,63409.0,0.157706]
[1724437567116,0.00090751,63423.0,63409.0,0.89641]
[1724437567344,0.00090751,63423.0,63409.0,0.581]
[1724437567468,0.00090751,63423.0,63417.0,0.157686]
[1724437567675,0.00090751,63423.0,63422.0,0.157673]
[1724437567899,0.00090751,63423.0,63422.0,0.545173]
[1724437568099,0.00090751,63423.0,63422.0,0.86052]
[1724437568301,0.00090751,63423.0,63422.0,1.684714]
[1724437568706,0.00390751,63423.0,63422.0,1.684714]
[1724437569337,0.01090751,63423.0,63422.0,1.684714]
[1724437569881,0.00390751,63423.0,63422.0,1.684714]
[1724437570100,0.00190751,63423.0,63422.0,1.370367]
[1724437570294,0.00190751,63423.0,63422.0,0.001]
[1724437570445,0.00490751,63423.0,63422.0,0.001]
[1724437570926,0.00190751,63423.0,63422.0,0.001]
[1724437571127,0.00290751,63423.0,63422.0,0.001]
[1724437571327,0.00190751,63423.0,63416.0,0.3875]
[1724437571549,0.00090751,63423.0,63416.0,0.3875]
[1724437571753,0.00190751,63423.0,63422.0,0.001]
[1724437571951,0.00190751,63423.0,63422.0,0.004]
[1724437572152,0.00090751,63423.0,63422.0,0.003]
[1724437572760,0.00090751,63423.0,63422.0,0.791367]
[1724437573614,0.00090751,63423.0,63422.0,0.160673]
[1724437573869,0.00090751,63423.0,63422.0,0.003]
[1724437574085,0.00090751,63423.0,63419.0,0.157681]
[1724437574255,0.00090751,63423.0,63422.0,0.157673]
[1724437574496,0.00090751,63423.0,63422.0,0.15722526]
[1724437574760,0.00090751,63423.0,63422.0,0.78791926]
[1724437575018,0.00190751,63423.0,63422.0,0.47257226]
[1724437575764,0.00290751,63423.0,63422.0,0.47257226]
[1724437576549,0.00290751,63423.0,63416.0,0.702876]
[1724437576550,0.00290751,63423.0,63417.0,0.315371]
[1724437576758,0.00290751,63423.0,63416.0,0.3875]
[1724437576995,0.00290751,63423.0,63422.0,0.47302]
[1724437577245,0.00290751,63423.0,63422.0,1.103714]
[1724437577720,0.00190751,63423.0,63422.0,1.103714]
[1724437577958,0.00190751,63423.0,63422.0,1.478814]
[1724437578199,0.00290751,63423.0,63422.0,1.677114]
[1724437578434,0.02472974,63441.0,63440.0,1.163245]
[1724437578698,0.5709,63457.0,63447.0,0.157611]
[1724437578935,0.02472718,63454.0,63446.0,0.157612]
[1724437579149,0.02472718,63454.0,63445.0,0.315233]
[1724437579320,0.02472718,63454.0,63440.0,0.5734]
[1724437579321,0.02472718,63454.0,63446.0,0.0315233]
[1724437579494,0.02472718,63454.0,63453.0,0.157596]
[1724437579699,0.02472718,63454.0,63440.0,0.5734]
[1724437579906,0.02472718,63454.0,63447.0,0.001]
[1724437580108,0.02472718,63454.0,63447.0,0.158611]
[1724437580310,0.02472718,63454.0,63447.0,0.001]
[1724437580511,0.02472718,63454.0,63448.0,0.157608]
[1724437580915,0.02572718,63454.0,63448.0,0.157608]
[1724437581115,0.02472718,63454.0,63446.0,0.315224]
[1724437581323,0.02472718,63454.0,63453.0,0.157596]
[1724437581324,0.02872718,63454.0,63453.0,0.157596]
[1724437581516,0.02872718,63454.0,63453.0,0.472789]
[1724437581517,0.02972718,63454.0,63453.0,0.472789]
[1724437581742,0.02972718,63454.0,63448.0,0.4009]
[1724437581743,0.004,63454.0,63449.0,0.315212]
[1724437582056,0.001,63454.0,63448.0,0.4009]
[1724437582259,0.001,63454.0,63445.0,0.157615]
[1724437582260,0.0009064,63463.0,63441.0,0.157626]
[1724437582394,0.0009064,63463.0,63440.0,0.5992]
[1724437582395,0.315156,63461.0,63440.0,0.5992]
[1724437582598,0.157588,63457.0,63442.0,0.157622]
[1724437582831,0.157588,63457.0,63440.0,0.5992]
[1724437582832,0.315161,63460.0,63440.0,0.5992]
[1724437583033,0.1576,63452.0,63437.0,0.157635]
[1724437583263,0.1883,63458.0,63434.0,0.3947]
[1724437583264,0.315174,63457.0,63434.0,0.3947]
[1724437583457,0.15761,63448.0,63434.0,0.3947]
[1724437583686,0.15761,63448.0,63416.0,0.315377]
[1724437583687,0.1,63447.0,63427.0,0.3947]
[1724437583887,0.023,63447.0,63427.0,0.3947]
[1724437584133,0.180612,63447.0,63428.0,0.315317]
[1724437584283,0.182612,63447.0,63437.0,0.001]
[1724437584633,0.1,63446.0,63431.0,0.15765]
[1724437584834,0.15762,63444.0,63429.0,0.157655]
[1724437585039,0.123,63443.0,63429.0,0.31531]
[1724437585205,0.1,63443.0,63427.0,0.3947]
[1724437585524,0.023,63442.0,63430.0,0.315306]
[1724437585678,0.023,63442.0,63435.0,0.15764]
[1724437586124,0.023,63442.0,63437.0,0.157636]
[1724437586424,0.1,63446.0,63439.0,0.15763]
[1724437586649,0.02472921,63447.0,63431.0,0.315299]
[1724437586850,0.02772921,63447.0,63441.0,0.157626]
[1724437587108,0.02772921,63447.0,63446.0,0.157614]
[1724437587486,0.02472921,63447.0,63438.0,0.3915]
[1724437587640,0.02472921,63447.0,63444.0,0.157617]
[1724437587988,0.005,63443.0,63442.0,0.472869]
[1724437588141,0.003,63442.0,63438.0,0.549132]
[1724437590530,0.374222,63443.0,63438.0,0.002]
[1724437590729,0.1,63442.0,63438.0,0.002]
[1724437590961,0.157631,63439.0,63438.0,0.002]
[1724437591129,0.157654,63430.0,63415.0,0.15769]
[1724437591347,0.315303,63431.0,63411.0,0.719498]
[1724437591528,0.157657,63429.0,63415.0,0.157691]
[1724437591738,0.157657,63429.0,63414.0,0.157693]
[1724437591939,0.157651,63432.0,63422.0,0.00043598]
[1724437592139,0.023,63431.0,63422.0,0.00043598]
[1724437592340,0.023,63431.0,63422.0,0.00143598]
[1724437592341,0.009,63430.0,63422.0,0.00143598]
[1724437592922,0.1892,63427.0,63422.0,0.00143598]
[1724437593053,0.4141,63426.0,63422.0,0.00143598]
[1724437593255,0.473014,63423.0,63422.0,0.00143598]
[1724437593457,0.788357,63423.0,63422.0,0.00143598]
[1724437593680,0.813357,63423.0,63422.0,0.00043598]
[1724437593884,0.97733578,63423.0,63422.0,0.00043598]
[1724437594089,0.97733578,63423.0,63422.0,0.00143598]
[1724437594090,1.80777878,63423.0,63422.0,0.00143598]
[1724437594297,1.80777878,63423.0,63381.0,0.00813]
[1724437594298,0.6033,63401.0,63381.0,0.00813]
[1724437594497,0.315459,63400.0,63381.0,0.00813]
[1724437594670,0.4161,63399.0,63381.0,0.00813]
[1724437594873,0.23659666,63398.0,63385.0,0.49229154]
[1724437595190,0.23659666,63398.0,63381.0,0.00813]
[1724437595191,0.1,63398.0,63381.0,0.00813]
[1724437595365,0.157745,63394.0,63381.0,0.00813]
[1724437595570,0.023,63397.0,63381.0,0.00813]
[1724437595571,0.123,63393.0,63381.0,0.00813]
[1724437595774,0.1,63393.0,63392.0,0.001]
[1724437595983,0.1,63393.0,63392.0,0.3943]
[1724437596181,0.0247495,63397.0,63392.0,0.3943]
[1724437596182,0.0247495,63397.0,63396.0,0.157738]
[1724437596473,0.005,63399.0,63398.0,0.4732]
[1724437596707,0.005,63399.0,63392.0,0.3943]
[1724437596903,0.005,63399.0,63392.0,0.3933]
[1724437597258,0.011,63398.0,63396.0,0.157737]
[1724437597454,0.011,63398.0,63397.0,0.157736]
[1724437597682,0.1,63414.0,63392.0,0.394125]
[1724437597887,0.157702,63411.0,63393.0,0.473234]
[1724437598129,0.001,63399.0,63393.0,0.31549]
[1724437598329,0.001,63398.0,63394.0,0.315484]
[1724437598528,0.001,63398.0,63392.0,0.394125]
[1724437598733,0.001,63398.0,63397.0,0.011]
[1724437598734,0.002,63398.0,63397.0,0.011]
[1724437598945,0.001,63398.0,63397.0,0.011]
[1724437599946,0.02474395,63406.0,63392.0,0.000825]
[1724437600383,0.02474395,63406.0,63393.0,0.174744]
[1724437600384,0.002,63399.0,63393.0,0.174744]
[1724437600591,0.001,63399.0,63393.0,0.007]
[1724437600952,0.023,63405.0,63392.0,0.000825]
[1724437600953,0.001,63398.0,63397.0,0.011]
[1724437601361,0.123,63403.0,63392.0,0.000825]
[1724437601582,0.001,63399.0,63393.0,0.012]
[1724437601783,0.001,63399.0,63394.0,0.315487]
[1724437601963,0.001,63399.0,63397.0,0.157735]
[1724437602158,0.1,63403.0,63398.0,0.157733]
[1724437602360,0.02474395,63406.0,63394.0,0.315487]
[1724437602562,0.006,63398.0,63397.0,0.001]
[1724437603715,0.1,63405.0,63397.0,0.003]
[1724437603856,0.1,63405.0,63392.0,0.0039798]
[1724437604057,0.004,63403.0,63397.0,0.5969]
[1724437604282,0.004,63403.0,63400.0,0.157727]
[1724437604480,0.004,63403.0,63402.0,0.157723]
[1724437604684,0.02474395,63406.0,63397.0,0.5969]
[1724437604943,0.185,63418.0,63405.0,0.157715]
[1724437605083,0.003,63433.0,63397.0,0.5969]
[1724437605084,0.185,63425.0,63411.0,0.4131]
[1724437605316,0.185,63425.0,63397.0,0.1838]
[1724437605317,0.02474267,63427.0,63412.0,0.4141]
[1724437605535,0.02474267,63427.0,63416.0,0.157688]
[1724437605738,0.02474267,63427.0,63417.0,0.31537]
[1724437605951,0.02474267,63427.0,63412.0,0.4141]
[1724437606792,0.34006767,63427.0,63412.0,0.4141]
[1724437606966,0.315328,63426.0,63405.0,0.3772]
[1724437607172,0.157685,63418.0,63407.0,0.49229154]
[1724437607532,0.405,63424.0,63405.0,0.534915]
[1724437607533,0.157683,63419.0,63405.0,0.534915]
[1724437607645,0.1,63418.0,63405.0,0.3772]
[1724437607841,0.04773853,63417.0,63409.0,0.31541]
[1724437608067,0.04773853,63417.0,63410.0,0.315405]
[1724437608068,0.02473853,63417.0,63410.0,0.315405]
[1724437608309,0.02473853,63417.0,63414.0,0.157693]
[1724437608541,0.02473853,63417.0,63416.0,0.157688]
[1724437608744,0.02473853,63417.0,63416.0,0.868965]
[1724437608952,0.02473853,63417.0,63416.0,1.056565]
[1724437609159,0.001,63418.0,63416.0,0.5835]
[1724437609785,0.02073569,63426.0,63416.0,0.3959]
[1724437609998,0.02073569,63426.0,63416.0,0.4512599]
[1724437609999,0.023,63425.0,63416.0,0.4512599]
[1724437610198,0.023,63425.0,63417.0,0.157684]
[1724437610199,0.001,63418.0,63417.0,0.157684]
[1724437610416,0.023,63425.0,63416.0,0.4512599]
[1724437610417,0.023,63425.0,63416.0,0.3959]
[1724437610548,0.001,63417.0,63416.0,0.4029]
[1724437610754,0.001,63417.0,63416.0,0.015]
[1724437610951,0.158686,63417.0,63416.0,0.007]
[1724437611177,0.158686,63417.0,63412.0,0.000825]
[1724437611178,0.123,63417.0,63412.0,0.000825]
[1724437611379,0.123,63416.0,63412.0,0.000825]
[1724437611786,0.1,63416.0,63412.0,0.000825]
[1724437611987,0.1,63416.0,63415.0,0.853873]
[1724437612314,0.001,63418.0,63417.0,0.473058]
[1724437612679,0.001,63418.0,63412.0,0.000825]
[1724437613260,0.00062045,63418.0,63412.0,0.000825]
[1724437613464,0.001,63417.0,63416.0,0.157688]
[1724437613674,0.001,63417.0,63416.0,0.1742393]
[1724437613845,0.001,63417.0,63416.0,0.5906393]
[1724437614058,0.1,63421.0,63418.0,0.157681]
[1724437614210,0.02473769,63436.0,63417.0,0.1925]
[1724437614417,0.001,63418.0,63417.0,0.1925]
[1724437614614,0.001,63418.0,63417.0,0.665558]
[1724437614873,0.02473769,63436.0,63417.0,0.1925]
[1724437615075,0.02473769,63436.0,63418.0,0.06089]
[1724437615249,0.02473769,63436.0,63422.0,0.315345]
[1724437615479,0.02473769,63436.0,63425.0,0.157665]
[1724437615658,0.02473769,63436.0,63419.0,0.315361]
[1724437615857,0.023,63435.0,63418.0,0.06289]
[1724437616112,0.023,63435.0,63419.0,0.03605465]
[1724437616284,0.023,63435.0,63428.0,0.157657]
[1724437616519,0.023,63435.0,63427.0,0.157659]
[1724437616729,0.023,63435.0,63421.0,0.315349]
[1724437616959,0.023,63435.0,63423.0,0.315342]
[1724437617086,0.023,63435.0,63422.0,0.49229154]
[1724437617286,0.023,63435.0,63417.0,0.1925]
[1724437617488,0.025,63435.0,63425.0,0.157665]
[1724437617695,0.025,63435.0,63426.0,0.157663]
[1724437617908,0.023,63435.0,63426.0,0.157663]
[1724437618176,0.025,63435.0,63424.0,0.315335]
[1724437618304,0.03,63435.0,63426.0,0.157663]
[1724437618504,0.03,63435.0,63422.0,0.315346]
[1724437619030,0.03,63435.0,63426.0,0.157663]
[1724437619482,0.028,63435.0,63425.0,0.157666]
[1724437619683,0.13006017,63435.0,63423.0,0.315341]
[1724437619811,0.023,63435.0,63421.0,0.49229154]
[1724437620015,0.028,63435.0,63426.0,0.315327]
[1724437620223,0.028,63435.0,63423.0,0.315339]
[1724437620403,0.028,63435.0,63426.0,0.157663]
[1724437620404,0.023,63435.0,63426.0,0.157663]
[1724437621018,0.023,63435.0,63422.0,0.315346]
[1724437621172,0.023,63435.0,63426.0,0.157662]
[1724437621337,0.028,63435.0,63425.0,0.315329]
[1724437621567,0.028,63435.0,63420.0,0.3864]
[1724437621568,0.005,63435.0,63420.0,0.3864]
[1724437621804,0.0159,63450.0,63442.0,0.315248]
[1724437622004,0.0159,63450.0,63442.0,1.83383694]
[1724437622258,0.0159,63450.0,63442.0,0.859272]
[1724437622405,0.0159,63450.0,63442.0,0.544024]
[1724437622609,0.0159,63450.0,63442.0,1.17452]
[1724437622804,0.0159,63450.0,63442.0,1.48931624]
[1724437623510,0.0159,63450.0,63442.0,1.50331624]
[1724437624132,0.00190751,63443.0,63442.0,1.20206824]
[1724437624352,0.00190751,63443.0,63442.0,0.028]
[1724437624940,0.00190751,63443.0,63442.0,0.185624]
[1724437625140,0.00190751,63443.0,63442.0,1.57697106]
[1724437625592,0.00190751,63443.0,63442.0,1.75747106]
[1724437626147,0.00190751,63443.0,63442.0,1.707068]
[1724437626357,0.00190751,63443.0,63442.0,1.39182]
[1724437627324,0.00190751,63443.0,63442.0,0.81612]
[1724437627527,0.00190751,63443.0,63442.0,0.028]
[1724437628890,0.15952851,63443.0,63442.0,0.028]
[1724437629101,0.87857645,63443.0,63442.0,0.028]
[1724437629349,0.53450751,63443.0,63442.0,0.028]
[1724437629596,0.64645779,63443.0,63442.0,0.028]
[1724437629834,0.64545779,63443.0,63442.0,0.014]
[1724437630035,0.64545779,63443.0,63422.0,0.49229154]
[1724437630212,0.64545779,63443.0,63423.0,0.31534]
[1724437630213,0.34406894,63437.0,63423.0,0.31534]
[1724437630446,0.023,63436.0,63430.0,0.157653]
[1724437630703,0.123,63436.0,63430.0,0.157653]
[1724437630903,0.023,63436.0,63416.0,0.4155]
[1724437631029,0.7004,63435.0,63416.0,0.4155]
[1724437631235,0.023,63434.0,63427.0,0.15766]
[1724437631431,0.023,63434.0,63422.0,0.315347]
[1724437631630,0.023,63434.0,63426.0,0.157663]
[1724437631833,0.023,63434.0,63403.0,0.80773254]
[1724437631834,0.34406894,63430.0,63403.0,0.80773254]
[1724437632037,0.157659,63428.0,63413.0,0.157695]
[1724437632237,0.1,63429.0,63412.0,0.000825]
[1724437632238,0.123,63429.0,63412.0,0.000825]
[1724437632438,0.123,63429.0,63416.0,0.157688]
[1724437632641,0.123,63429.0,63412.0,0.000825]
[1724437632842,0.10563689,63428.0,63412.0,0.000825]
[1724437633066,0.123,63427.0,63412.0,0.000825]
[1724437633467,0.123,63427.0,63414.0,0.157692]
[1724437633667,0.123,63427.0,63416.0,0.002]
[1724437633870,0.123,63427.0,63417.0,0.157685]
[1724437634071,0.123,63427.0,63416.0,0.002]
[1724437634072,0.46487058,63426.0,63416.0,0.002]
[1724437634535,0.023,63425.0,63416.0,0.002]
[1724437634707,0.123,63425.0,63416.0,0.002]
[1724437635126,0.318301,63432.0,63416.0,0.002]
[1724437635127,0.1822,63434.0,63433.0,0.157646]
[1724437635325,0.00090751,63443.0,63442.0,0.157624]
[1724437635789,0.00090751,63443.0,63433.0,0.3897]
[1724437635971,0.34406894,63435.0,63417.0,0.3874]
[1724437636175,0.34406894,63435.0,63413.0,0.000825]
[1724437636176,0.157655,63430.0,63420.0,0.49229154]
[1724437636377,0.708788,63434.0,63413.0,0.000825]
[1724437636378,0.1916,63431.0,63415.0,0.315382]
[1724437636514,0.14021069,63430.0,63417.0,0.157685]
[1724437636738,0.14021069,63430.0,63413.0,0.000825]
[1724437636916,0.123,63429.0,63413.0,0.000825]
[1724437637127,0.91616894,63428.0,63416.0,0.007]
[1724437637335,0.91616894,63428.0,63414.0,0.157692]
[1724437637336,0.02473547,63426.0,63414.0,0.157692]
[1724437637540,0.02473547,63426.0,63415.0,0.15769]
[1724437637541,0.023,63425.0,63415.0,0.15769]
[1724437637912,0.023,63425.0,63417.0,0.003]
[1724437638068,0.023,63425.0,63413.0,0.15852]
[1724437638395,0.023,63425.0,63414.0,0.157693]
[1724437638604,0.14341151,63425.0,63414.0,0.164693]
[1724437638729,0.14341151,63425.0,63414.0,0.157693]
[1724437638935,0.1,63424.0,63415.0,0.15769]
[1724437639249,0.1,63424.0,63422.0,0.157673]
[1724437639450,0.1,63424.0,63423.0,0.473014]
[1724437639662,0.02473547,63426.0,63425.0,0.472999]
[1724437639865,0.18560751,63443.0,63424.0,0.402]
[1724437640066,0.02473293,63436.0,63435.0,0.472924]
[1724437640247,0.02473293,63436.0,63435.0,1.50549]
[1724437640649,0.00090751,63443.0,63442.0,0.472872]
[1724437641152,0.00090751,63443.0,63442.0,0.78812]
[1724437642350,0.00090751,63443.0,63442.0,0.79312]
[1724437642671,0.00090751,63443.0,63442.0,0.79812]
[1724437643056,0.00090751,63443.0,63442.0,0.79312]
[1724437643449,0.00090751,63443.0,63442.0,0.79612]
[1724437643698,0.00090751,63443.0,63442.0,0.79112]
[1724437644030,0.00090751,63443.0,63442.0,0.79612]
[1724437644386,0.00090751,63443.0,63442.0,2.023016]
[1724437644527,0.00090751,63443.0,63442.0,2.020016]
[1724437644722,0.00090751,63443.0,63442.0,2.17901898]
[1724437645052,0.00090751,63443.0,63442.0,1.708768]
[1724437645053,0.00190751,63443.0,63442.0,1.708768]
[1724437645285,0.00190751,63443.0,63442.0,1.720768]
[1724437645417,0.00090751,63443.0,63442.0,1.711768]
[1724437645816,0.00190751,63443.0,63442.0,2.041016]
[1724437646024,0.00190751,63443.0,63442.0,2.20501898]
[1724437646251,0.00190751,63443.0,63442.0,2.52226698]
[1724437646470,0.00190751,63443.0,63442.0,2.52426698]
[1724437646826,0.00190751,63443.0,63442.0,2.53826698]
[1724437647292,0.00190751,63443.0,63442.0,2.51226698]
[1724437647491,0.00190751,63443.0,63442.0,2.52726698]
[1724437647700,0.00090751,63443.0,63442.0,2.51326698]
[1724437647916,0.00090751,63443.0,63442.0,2.49926698]
[1724437648278,0.00090751,63443.0,63442.0,2.51326698]
[1724437648479,0.00090751,63443.0,63442.0,2.49526698]
[1724437648680,0.00094751,63443.0,63442.0,2.51326698]
[1724437649102,0.00094751,63443.0,63442.0,2.49926698]
[1724437649480,0.00094751,63443.0,63442.0,2.51326698]
[1724437650596,0.0159,63450.0,63449.0,1.736671]
[1724437650796,0.01680751,63459.0,63458.0,0.787922]
[1724437650967,0.01680751,63459.0,63458.0,1.103091]
[1724437652165,0.01680751,63459.0,63458.0,0.013]
[1724437652691,0.01680751,63459.0,63449.0,0.157604]
[1724437652692,0.1995,63458.0,63449.0,0.157604]
[1724437652918,0.5298,63457.0,63433.0,0.3989]
[1724437653122,0.5298,63457.0,63446.0,0.157613]
[1724437653227,0.5298,63457.0,63436.0,0.315276]
[1724437653228,0.52976,63457.0,63436.0,0.315276]
[1724437653443,0.52976,63457.0,63449.0,0.014]
[1724437653673,0.52976,63457.0,63449.0,0.157605]
[1724437653873,0.52976,63457.0,63449.0,0.315211]
[1724437654077,0.52976,63457.0,63440.0,0.315257]
[1724437654283,0.52976,63457.0,63445.0,0.315233]
[1724437654490,0.52976,63457.0,63436.0,0.315276]
[1724437654693,0.52976,63457.0,63443.0,0.157621]
[1724437654917,0.52976,63457.0,63449.0,0.001]
[1724437655323,0.348597,63453.0,63439.0,0.15763]
[1724437655527,0.348614,63446.0,63445.0,0.001]
[1724437655959,0.763842,63446.0,63445.0,0.001]
[1724437656162,1.019828,63446.0,63427.0,0.157659]
[1724437656380,1.019828,63446.0,63428.0,0.157658]
[1724437656381,0.132622,63443.0,63428.0,0.157658]
[1724437656580,0.12472931,63442.0,63426.0,0.000825]
[1724437656837,0.3971,63440.0,63426.0,0.000825]
[1724437657039,0.3075,63439.0,63426.0,0.000825]
[1724437657613,0.157661,63427.0,63426.0,0.000825]
[1724437657870,1.376707,63427.0,63426.0,0.000825]
[1724437658021,0.869061,63427.0,63426.0,0.000825]
[1724437658404,0.73613774,63427.0,63426.0,0.000825]
[1724437658570,0.73613774,63427.0,63426.0,0.008825]
[1724437659355,0.73613774,63427.0,63426.0,0.009825]
[1724437659558,0.73613774,63427.0,63426.0,0.001825]
[1724437660141,0.74313774,63427.0,63426.0,0.002825]
[1724437660275,0.32583774,63427.0,63426.0,0.159489]
[1724437660471,0.04073774,63427.0,63426.0,0.8070939]
[1724437660688,0.04073774,63427.0,63426.0,1.5119219]
[1724437661139,0.04073774,63427.0,63426.0,1.5129219]
[1724437661140,0.016,63427.0,63426.0,1.5129219]
[1724437661339,0.02473183,63439.0,63438.0,0.157634]
[1724437661729,0.00090751,63443.0,63438.0,0.157634]
[1724437661942,0.00090751,63443.0,63436.0,0.157637]
[1724437662150,0.00090751,63443.0,63433.0,0.315292]
[1724437662151,0.00090751,63443.0,63437.0,0.157634]
[1724437662378,0.00090751,63443.0,63436.0,0.315277]
[1724437662581,0.00090751,63443.0,63442.0,0.315248]
[1724437662710,0.00090751,63443.0,63442.0,1.070372]
[1724437662913,0.00090751,63443.0,63442.0,2.20993992]
[1724437663164,0.00090751,63443.0,63442.0,2.18111898]
[1724437663538,0.00090751,63443.0,63442.0,2.18311898]
[1724437664114,0.00090751,63443.0,63442.0,2.18111898]
[1724437664679,0.00090751,63443.0,63442.0,2.20911898]
[1724437664882,0.00090751,63443.0,63442.0,2.19511898]
[1724437665032,0.00090751,63443.0,63442.0,2.19711898]
[1724437665232,0.00090751,63443.0,63442.0,2.18311898]
[1724437665433,0.00090751,63443.0,63442.0,2.19711898]
[1724437665633,0.00190751,63443.0,63442.0,2.19711898]
[1724437665846,0.0009064,63463.0,63458.0,1.489591]
[1724437666926,0.0009064,63463.0,63458.0,1.174422]
[1724437667337,0.0009064,63463.0,63458.0,1.188422]
[1724437667920,0.3998,63462.0,63458.0,0.014]
[1724437668227,0.3998,63462.0,63458.0,0.028]
[1724437668228,0.20160751,63459.0,63458.0,0.028]
[1724437668401,0.22460751,63459.0,63458.0,0.028]
[1724437668606,0.22460751,63459.0,63458.0,0.185584]
[1724437668607,0.03890751,63459.0,63458.0,0.185584]
[1724437668824,0.01590751,63459.0,63458.0,0.500753]
[1724437669221,0.01590751,63459.0,63458.0,0.815922]
[1724437669423,0.01590751,63459.0,63458.0,0.801922]
[1724437669645,0.01640751,63459.0,63458.0,0.808922]
[1724437669862,0.01640751,63459.0,63458.0,0.794922]
[1724437670223,0.01640751,63459.0,63458.0,0.802922]
[1724437670424,0.01540751,63459.0,63458.0,0.795922]
[1724437670627,0.01540751,63459.0,63458.0,0.157584]
[1724437670829,0.01640751,63459.0,63458.0,0.007]
[1724437671087,0.01540751,63459.0,63458.0,0.003]
[1724437671432,0.01640751,63459.0,63458.0,0.007]
[1724437671957,0.03940751,63459.0,63458.0,0.015]
[1724437673165,0.03940751,63459.0,63458.0,0.007]
[1724437673340,0.03840751,63459.0,63452.0,0.157598]